Cogmind - Beta 13 @@@ ROGUE MODE // 2024.04.13 @ 17:23:58 Player: Lunace Result: Destroyed by H-77 Assassin with Coil Gun Performance ------------- Evolutions (5) 2500 Regions Visited (16) 3200 Robots Destroyed (101) 505 Value Destroyed (3737) 3737 Prototype IDs (22) 440 Alien Tech Used (2) 400 Bonus (1252) 1252 TOTAL SCORE: 12034 Bonus ------- High Alert Combat Kills 145 Follower Combat Kills 744 Entered DSFs 500 Met Zhirov 300 Friendly Fire -437 Cogmind --------- Core Integrity 0/1000 Matter 300/300 Energy 99/100 System Corruption 0% Temperature Cool (0) Movement Core (50) Location -4/Proximity Caves Parts ------- > --- POWER (1) -------- (None) > --- PROPULSION (4) --- (None) > --- UTILITY (10) ----- Advanced Visual Processing Unit Armor Integrity Analyzer > --- WEAPON (2) ------- Ripper > --- INVENTORY (5) ---- Neutrino Core High-capacity Storage Unit Advanced Energy Well (500) Advanced Signal Interpreter Improved Hacking Suite Peak State ------------ > --- POWER ------------ Fusion Reactor > --- PROPULSION ------- Armored Treads Spiked Medium Treads Spiked Medium Treads Spiked Medium Treads > --- UTILITY ---------- High-capacity Storage Unit Compact Battery Compact Battery Energy Well Energy Well Advanced Energy Well Advanced Visual Processing Unit Armor Integrity Analyzer Force Field Long-range Tractor Beam > --- WEAPON ----------- Molecular Deconstructor > --- INVENTORY -------- Neutrino Core Armored Treads Armored Treads Armored Treads Compact Battery Compact Battery Matter Compressor Matter Compressor Advanced Signal Interpreter Improved Hacking Suite Gauss Rifle Gauss Rifle Missile Launcher Missile Launcher Heavy Missile Launcher Ripper [Rating: 89] Favorites ----------- Power Neutrino Core Engine Improved Ion Engine Power Core Neutrino Core Reactor Fusion Reactor Propulsion Armored Treads Treads Armored Treads Leg Aluminum Leg Flight Unit Improved Flight Unit Utility Improved Heat Sink Device Improved Heat Sink Storage Energy Well Processor Advanced Visual Processing Unit Hackware Advanced System Shield Protection Hardened Heavy Armor Plating Weapon Molecular Deconstructor Energy Gun Small Laser Ballistic Gun Gauss Rifle Ballistic Cannon Light Cannon Launcher Rocket Launcher Special Weapon Molecular Deconstructor Slashing Weapon Katana Build | -11 -10 -10 -9 -9 -9 -8 -8 -8 -7 -7 -6 -5 -5 -5 -5 -4 ------- Run | Yrd Mat Min Mat Min Exi Min Mat Sto Fac DSF Fac Fac Upp Upp Zhi Pro Slots Evolved 10 | . . . 2 . . . 2 . 2 . 2 2 . . . . Power . | . . . . . . . . . . . . . . . . . Propulsion 2 | . . . 2 . . . . . . . . . . . . . Utility 8 | . . . . . . . 2 . 2 . 2 2 . . . . Weapon . | . . . . . . . . . . . . . . . . . Parts Attached 120 | 7 3 1 4 5 1 . 13 27 3 10 2 4 7 16 3 14 Power 9 | 1 2 . . . . . 1 2 . 1 . 1 . . 1 . Engine 5 | 1 1 . . . . . 1 1 . 1 . . . . . . Core 3 | . 1 . . . . . . 1 . . . 1 . . . . Reactor 1 | . . . . . . . . . . . . . . . 1 . Propulsion 33 | 2 . . 2 3 . . 3 12 . 4 . . 3 1 . 3 Treads 16 | 2 . . 1 2 . . . . . 4 . . 3 1 . 3 Leg 14 | . . . . 1 . . 3 10 . . . . . . . . Wheel . | . . . . . . . . . . . . . . . . . Hover . | . . . . . . . . . . . . . . . . . Flight 3 | . . . 1 . . . . 2 . . . . . . . . Utility 32 | 2 1 . 1 1 . . 5 1 3 3 2 2 3 4 2 2 Device 12 | 1 1 . . . . . 2 1 2 . 2 1 1 . . 1 Storage 9 | 1 . . 1 . . . . . . . . 1 1 4 1 . Processor 6 | . . . . . . . 3 . . 2 . . . . . 1 Hackware 1 | . . . . . . . . . . . . . . . 1 . Protection 4 | . . . . 1 . . . . 1 1 . . 1 . . . Artifact . | . . . . . . . . . . . . . . . . . Weapon 46 | 2 . 1 1 1 1 . 4 12 . 2 . 1 1 11 . 9 Energy Gun 2 | . . . 1 . 1 . . . . . . . . . . . Energy Cannon . | . . . . . . . . . . . . . . . . . Ballistic Gun 19 | 2 . . . . . . 3 6 . 2 . . . 3 . 3 Ballistic Cannon 2 | . . . . . . . 1 1 . . . . . . . . Launcher 13 | . . 1 . 1 . . . 3 . . . . . 5 . 3 Special Weapon 4 | . . . . . . . . . . . . . 1 2 . 1 Impact Weapon . | . . . . . . . . . . . . . . . . . Slashing Weapon 6 | . . . . . . . . 2 . . . 1 . 1 . 2 Piercing Weapon . | . . . . . . . . . . . . . . . . . Special Melee Weapon . | . . . . . . . . . . . . . . . . . Unidentified Prototypes 9 | . . . 1 . . . . 4 . . . . 1 . 3 . Parts Lost 30 | . . . 1 . . . 3 4 . . . . . 2 . 20 Power 1 | . . . . . . . . . . . . . . . . 1 Propulsion 10 | . . . . . . . 2 2 . . . . . . . 6 Utility 9 | . . . . . . . . . . . . . . 2 . 7 Weapon 10 | . . . 1 . . . 1 2 . . . . . . . 6 Highest Loss Streak 18 | . . . 1 . . . 1 2 . . . . . 1 . 18 To Critical Strikes 3 | . . . . . . . . . . . . . . . . 3 Average Slot Usage (%) 89 | . 100 92 91 98 100 100 91 97 93 94 82 85 86 86 90 82 Engine 1 | . 11 . . . . . 7 5 . 4 6 . . . . . Core 4 | . 2 14 11 11 11 11 1 3 7 2 . 4 5 5 3 . Treads 20 | . 28 28 30 34 33 33 16 . . 22 26 23 23 22 23 20 Leg 6 | . . . . 5 11 11 18 31 30 7 . . . . . . Device 14 | . 14 14 11 3 . . 8 14 21 15 8 20 22 14 11 4 Storage 11 | . 14 14 11 11 11 11 9 9 7 7 6 5 9 12 30 21 Processor 9 | . . . . . . . 5 12 7 9 13 11 11 11 11 15 Protection 4 | . . . . 6 11 11 6 . 2 7 6 5 5 7 . . Ballistic Gun 4 | . 28 21 8 . . . 10 12 . 12 13 9 . 4 . . Launcher 3 | . . . 11 18 19 11 3 1 7 1 . . . . . 3 Special Weapon 2 | . . . . . . . . . . . . . 4 2 5 1 Naked Turns . | . . . . . . . . . . . . . . . . . Heaviest Build 97 | 13 15 16 31 56 56 50 55 38 42 65 66 90 97 97 81 79 Greatest Support 104 | 40 40 40 60 88 68 68 68 61 61 80 80 80 104 104 104 104 Greatest Overweight (x) 4 | 3 . . . . . . 1 1 . 1 . 1 1 . . 4 Average Overweight (x) . | . . . . . . . . . . . . . . . . . Largest Inventory Capacity 20 | 8 8 8 15 15 15 15 15 15 15 15 15 20 20 20 20 20 Average Capacity 17 | 7 8 8 10 15 15 15 15 15 15 15 15 15 20 20 20 19 Most Carried 20 | 4 8 8 8 9 11 12 15 15 15 15 15 15 20 20 17 17 Average Carried 15 | 2 6 8 7 8 10 11 14 13 14 14 14 14 18 17 15 15 Final Capacity 20 | 8 8 8 15 15 15 15 15 15 15 15 15 20 20 20 20 5 Final Carried 20 | 4 8 8 7 9 11 12 14 12 15 15 15 15 20 15 16 5 Class Distribution -------------------- 43% | Scavenger-Mutant 24% | Derelict-Mutant 19% | Mutant 13% | Commander-Mutant Dominant Class ---------------- Mutant | -10/Materials Mutant | -10/Mines Mutant | -9/Materials Mutant | -9/Mines Mutant | -9/Exiles Mutant | -8/Mines Mutant | -8/Materials Commander-Mutant | -8/Storage Commander-Mutant | -7/Factory Commander-Mutant | -7/DSF Scavenger-Mutant | -6/Factory Scavenger-Mutant | -5/Factory Scavenger-Mutant | -5/Upper Caves Derelict-Mutant | -5/Upper Caves Derelict-Mutant | -5/Zhirov Derelict-Mutant | -4/Proximity Caves Resources | -11 -10 -10 -9 -9 -9 -8 -8 -8 -7 -7 -6 -5 -5 -5 -5 -4 ----------- Run | Yrd Mat Min Mat Min Exi Min Mat Sto Fac DSF Fac Fac Upp Upp Zhi Pro Matter Collected 3777 | 274 212 . 262 . 14 32 484 781 . 183 52 100 618 317 . 448 Remotely 1397 | . . . . . . . . 226 . 183 52 . 614 317 . 5 Salvage Created 2587 | 119 256 . 144 . 14 . 236 737 . 62 72 . 202 445 . 300 Parts 153 | 5 15 . 13 . . . 21 39 . 6 3 . 13 26 . 12 Haulers Intercepted 2 | . . . . . . . . 2 . . . . . . . . Recyclers Shooed . | . . . . . . . . . . . . . . . . . Parts Field Recycled . | . . . . . . . . . . . . . . . . . Retrieved Matter . | . . . . . . . . . . . . . . . . . Parts Self-Destructed 63 | . . . . . . . . . . . . . 22 30 . 11 Prevented . | . . . . . . . . . . . . . . . . . Kills | -11 -10 -10 -9 -9 -9 -8 -8 -8 -7 -7 -6 -5 -5 -5 -5 -4 ------- Run | Yrd Mat Min Mat Min Exi Min Mat Sto Fac DSF Fac Fac Upp Upp Zhi Pro Combat Hostiles Destroyed 81 | . 7 . 9 . . . 5 16 . 1 1 . 7 17 . 18 Melee 2 | . . . . . . . . . . . . . . 1 . 1 Guns 20 | . 7 . 1 . . . 3 6 . 1 1 . . 1 . . Cannons 5 | . . . . . . . . 5 . . . . . . . . AOE 41 | . . . 8 . . . 2 5 . . . . . 10 . 16 Classes Destroyed 18 | 2 3 . 2 . . . 2 2 . 1 . . . 3 . 3 Worker 4 | . 1 . . . . . . 3 . . . . . . . . Builder 4 | . . . . . . . 2 2 . . . . . . . . Tunneler 1 | 1 . . . . . . . . . . . . . . . . Hauler 2 | . . . . . . . . 2 . . . . . . . . Recycler 2 | 1 . . . . . . . 1 . . . . . . . . Mechanic 1 | . . . . . . . . . . . . . . . . 1 Operator 1 | . . . . . . . . 1 . . . . . . . . Watcher 3 | . . . 1 . . . 1 1 . . . . . . . . Swarmer 30 | . 3 . 6 . . . 2 . . . . . . 10 . 9 Grunt 24 | . 4 . 1 . . . 2 10 . . . . 1 3 . 3 Brawler 1 | . . . . . . . . . . . . . . . . 1 Duelist 3 | . . . . . . . . . . . . . . . . 3 Sentry 12 | . . . 2 . . . 1 5 . . 1 . 1 1 . 1 Specialist 4 | . . . . . . . . . . 1 . . 3 . . . Hunter 5 | . . . . . . . 2 1 . . . . 2 . . . Programmer 1 | . . . . . . . . . . . . . . 1 . . Behemoth 2 | . . . . . . . . . . . . . . 1 . 1 Mutant 1 | . . . . . . . . . . . . . . 1 . . Best Kill Streak 14 | 1 4 . 4 . . . 3 14 . 1 1 . 2 4 . 9 Combat Bots Only 8 | . 4 . 4 . . . 2 8 . 1 1 . 2 4 . 8 Max Kills in Single Turn 4 | 1 1 . 3 . . . 3 2 . 1 1 . 1 4 . 4 Gunslinging . | . . . . . . . . . . . . . . . . . Exploded 4 | . . . 3 . . . 1 2 . . . . . 4 . 3 Melee 1 | . . . . . . . . . . . . . . 1 . 1 Uniques/NPCs Destroyed . | . . . . . . . . . . . . . . . . . Combat | -11 -10 -10 -9 -9 -9 -8 -8 -8 -7 -7 -6 -5 -5 -5 -5 -4 -------- Run | Yrd Mat Min Mat Min Exi Min Mat Sto Fac DSF Fac Fac Upp Upp Zhi Pro Hostile Shots Fired 646 | . 31 . 51 . . 1 50 81 . 3 33 . 72 94 . 230 Missed 185 | . 8 . 15 . . 1 16 27 . . 12 . 19 28 . 59 Damage Taken 7523 | . 304 . 457 46 . . 567 869 . 78 150 . 537 961 . 3554 Core 1221 | . 80 . 36 . . . 32 89 . 58 5 . 14 109 . 798 Absorbed by Shields 1358 | . . . . . . . . . . . . . 352 592 . 414 Redirected to Shielding 79 | . . . . . . . . . . . . . . 79 . . Ignored by Resistances 67 | . . . . . . . 67 . . . . . . . . . Core Remaining (%) 87 | 100 . 68 . . . 91 . 78 . 91 99 . . . . . Volleys Fired 208 | 2 26 . 22 . 7 . 14 52 . 2 4 . 20 31 . 28 Largest 2 | 2 2 . 2 . 1 . 2 2 . 2 2 . 1 2 . 2 Hottest 74 | 40 40 . 73 . 40 . 48 74 . 56 56 . . 56 . 72 Shots Fired 323 | 4 52 . 30 . 7 . 27 92 . 4 8 . 20 41 . 38 Gun 194 | 4 52 . 18 . 7 . 26 48 . 4 8 . . 18 . 9 Cannon 27 | . . . . . . . . 27 . . . . . . . . Launcher 57 | . . . 12 . . . 1 17 . . . . . 5 . 22 Special 45 | . . . . . . . . . . . . . 20 18 . 7 Kinetic 212 | 4 52 . 16 . . . 26 75 . 4 8 . . 18 . 9 Thermal 9 | . . . 2 . 7 . . . . . . . . . . . Explosive 57 | . . . 12 . . . 1 17 . . . . . 5 . 22 Electromagnetic . | . . . . . . . . . . . . . . . . . Robot Hit Streak 11 | 3 6 . 9 . 9 . 5 11 . 3 4 . 6 9 . 7 Robot Miss Streak 4 | . 4 . 1 . 2 . 3 4 . 1 1 . 2 2 . 2 Penetration Max . | . . . . . . . . . . . . . . . . . Secondary Targets 2 | . 1 . . . . . . 1 . . . . . . . . Max Gunslinging Chain 1 | . 1 . . . . . . 1 . . . . . . . . Shots Hit Robots 237 | 3 32 . 23 . 5 . 22 61 . 5 5 . 16 32 . 33 Core Hits 179 | 3 20 . 14 . 2 . 15 49 . 2 2 . . 22 . 50 Critical Kills . | . . . . . . . . . . . . . . . . . Critical Parts Destroyed 1 | . . . . . . . . . . . . . . 1 . . Critical Strikes 2 | . . . . . . . . 1 . . . . . 1 . . Destroy 1 | . . . . . . . . . . . . . . 1 . . Blast 1 | . . . . . . . . 1 . . . . . . . . Melee Attacks 22 | . . . . . . . . 6 . 2 . 1 1 6 . 6 Impact . | . . . . . . . . . . . . . . . . . Slashing 22 | . . . . . . . . 6 . 2 . 1 1 6 . 6 Piercing . | . . . . . . . . . . . . . . . . . Sneak Attacks 1 | . . . . . . . . . . 1 . . . . . . Combat Hostiles 1 | . . . . . . . . . . 1 . . . . . . Follow-up Attacks . | . . . . . . . . . . . . . . . . . Damage Inflicted 8510 | 30 276 . 773 . 55 . 810 2309 . 144 101 10 . 1013 . 2989 Guns 1989 | 30 276 . 148 . 55 . 403 505 . 60 101 . . 252 . 159 Cannons 417 | . . . . . . . . 352 . . . . . 65 . . Explosions 5670 | . . . 625 . . . 407 1415 . . . . . 542 . 2681 Melee 424 | . . . . . . . . 37 . 84 . . . 154 . 149 Ramming 10 | . . . . . . . . . . . . 10 . . . . Kinetic 2262 | 30 276 . 124 . . . 403 857 . 60 101 . . 252 . 159 Thermal 79 | . . . 24 . 55 . . . . . . . . . . . Explosive 5670 | . . . 625 . . . 407 1415 . . . . . 542 . 2681 Electromagnetic . | . . . . . . . . . . . . . . . . . Impact 65 | . . . . . . . . . . . . . . 65 . . Slashing 424 | . . . . . . . . 37 . 84 . . . 154 . 149 Piercing . | . . . . . . . . . . . . . . . . . Highest Corruption 2 | . . . . . . . . 2 . . . . 2 2 . . Average Corruption 1 | . . . . . . . . 2 . . . . 1 1 . . Corruption Purged 6 | . . . . . . . . . . . . . 2 4 . . Corruption Blocked . | . . . . . . . . . . . . . . . . . Effects 29 | . . . . . . . . 11 . . . . 18 . . . Message Errors 8 | . . . . . . . . 3 . . . . 5 . . . Matter Fused 5 | . . . . . . . . 4 . . . . 1 . . . Heat Flow Errors 6 | . . . . . . . . 2 . . . . 4 . . . Energy Discharges 3 | . . . . . . . . . . . . . 3 . . . Parts Fused 1 | . . . . . . . . 1 . . . . . . . . Data Loss (minor) 4 | . . . . . . . . 1 . . . . 3 . . . Data Loss (major) 1 | . . . . . . . . . . . . . 1 . . . Alerts 1 | . . . . . . . . . . . . . 1 . . . Overload Shots . | . . . . . . . . . . . . . . . . . Overflow Damage 215 | . . . 55 . . . 14 67 . . . . . 12 . 67 Projectiles . | . . . . . . . . . . . . . . . . . Explosions 189 | . . . 55 . . . 14 67 . . . . . . . 53 Melee 26 | . . . . . . . . . . . . . . 12 . 14 Knockbacks 1 | . . . . . . . . 1 . . . . . . . . Impact . | . . . . . . . . . . . . . . . . . Kinetic 1 | . . . . . . . . 1 . . . . . . . . Secondary . | . . . . . . . . . . . . . . . . . Self-Inflicted Damage 392 | . . . 35 . . . 161 . . . . . . 117 . 79 Shots 12 | . . . 3 . . . 2 . . . . . . 4 . 3 Rammed 1 | . . . . . . . . . . . . 1 . . . . Targets Rammed 1 | . . . . . . . . . . . . 1 . . . . Kicked . | . . . . . . . . . . . . . . . . . Crushed . | . . . . . . . . . . . . . . . . . Highest Temperature 246 | . 32 . 18 . 56 . 6 246 . . 27 . 237 . . 36 Average Temperature 33 | . 8 . 13 . 28 . 3 36 . . 15 . 105 . . 16 Received Heat Transfer 1288 | . 168 . 168 . . . 153 342 . 18 36 . 46 150 . 207 Siege Activations . | . . . . . . . . . . . . . . . . . Robots Corrupted . | . . . . . . . . . . . . . . . . . Combat Hostiles . | . . . . . . . . . . . . . . . . . Parts Fried . | . . . . . . . . . . . . . . . . . Impact Corruptions . | . . . . . . . . . . . . . . . . . Robots Melted . | . . . . . . . . . . . . . . . . . Combat Hostiles . | . . . . . . . . . . . . . . . . . Parts Melted . | . . . . . . . . . . . . . . . . . Heat Transferred 175 | . . . 50 . 125 . . . . . . . . . . . Parts Sabotaged . | . . . . . . . . . . . . . . . . . Parts Stolen . | . . . . . . . . . . . . . . . . . Parts Stripped . | . . . . . . . . . . . . . . . . . Power Chain Reactions . | . . . . . . . . . . . . . . . . . Alert | -11 -10 -10 -9 -9 -9 -8 -8 -8 -7 -7 -6 -5 -5 -5 -5 -4 ------- Run | Yrd Mat Min Mat Min Exi Min Mat Sto Fac DSF Fac Fac Upp Upp Zhi Pro Peak Influence 1236 | 10 278 . 372 94 . 22 247 1236 562 291 181 93 . . . . Initial 562 | . 6 . . 94 . . 29 104 562 256 151 83 . . . . Average 331 | 4 85 . 153 94 . 2 123 717 540 283 157 83 . . . . Maximum Alert Level 4 | . 1 . 1 . . . 1 4 2 1 . . . . . . Low Security (%) 47 | 100 77 100 73 100 . 100 70 3 . . 100 100 . . . . Level 1 17 | . 22 . 26 . . . 29 2 10 100 . . . . . . Level 2 25 | . . . . . . . . 54 89 . . . . . . . Level 3 6 | . . . . . . . . 26 . . . . . . . . Level 4 3 | . . . . . . . . 12 . . . . . . . . Level 5 . | . . . . . . . . . . . . . . . . . High Security . | . . . . . . . . . . . . . . . . . Max Security . | . . . . . . . . . . . . . . . . . Squads Dispatched 8 | . . . 1 . . . . 5 . 1 . . . . . 1 Investigation . | . . . . . . . . . . . . . . . . . Extermination . | . . . . . . . . . . . . . . . . . Reinforcement 5 | . . . 1 . . . . 3 . 1 . . . . . . Assault 1 | . . . . . . . . . . . . . . . . 1 Garrison 2 | . . . . . . . . 2 . . . . . . . . Intercept . | . . . . . . . . . . . . . . . . . Searches Triggered . | . . . . . . . . . . . . . . . . . Construction Impeded 1 | . . . . . . . . 1 . . . . . . . . Haulers Reinforced . | . . . . . . . . . . . . . . . . . Active Scanning Responses . | . . . . . . . . . . . . . . . . . Cargo Convoy Interrupts . | . . . . . . . . . . . . . . . . . Stealth | -11 -10 -10 -9 -9 -9 -8 -8 -8 -7 -7 -6 -5 -5 -5 -5 -4 --------- Run | Yrd Mat Min Mat Min Exi Min Mat Sto Fac DSF Fac Fac Upp Upp Zhi Pro Distress Signals 9 | . 3 . 1 . . . 3 2 . . . . . . . . Communications Jammed . | . . . . . . . . . . . . . . . . . Distress Signals . | . . . . . . . . . . . . . . . . . Times Spotted 129 | . 13 . 15 . . 3 10 29 . 4 1 . 7 23 . 24 Peak Tracking Total 10 | . 6 . 4 . . 3 6 4 . 1 1 . 2 5 . 10 Tactical Retreats 3 | . 1 . . . . . . . . . . . . 1 . 1 Traps | -11 -10 -10 -9 -9 -9 -8 -8 -8 -7 -7 -6 -5 -5 -5 -5 -4 ------- Run | Yrd Mat Min Mat Min Exi Min Mat Sto Fac DSF Fac Fac Upp Upp Zhi Pro Traps Triggered 3 | . . . . 1 . . . 2 . . . . . . . . Indirectly . | . . . . . . . . . . . . . . . . . Trap Hack Attempts . | . . . . . . . . . . . . . . . . . Triggered . | . . . . . . . . . . . . . . . . . Disarmed . | . . . . . . . . . . . . . . . . . Reprogrammed . | . . . . . . . . . . . . . . . . . Reused . | . . . . . . . . . . . . . . . . . Traps Extracted . | . . . . . . . . . . . . . . . . . Installed . | . . . . . . . . . . . . . . . . . Triggered . | . . . . . . . . . . . . . . . . . Machines | -11 -10 -10 -9 -9 -9 -8 -8 -8 -7 -7 -6 -5 -5 -5 -5 -4 ---------- Run | Yrd Mat Min Mat Min Exi Min Mat Sto Fac DSF Fac Fac Upp Upp Zhi Pro Machines Disabled 16 | . . . 4 . . . 2 7 . 1 . . 1 . . 1 Max in Single Turn 2 | . . . 1 . . . 2 2 . 1 . . 1 . . 1 Machines Repaired . | . . . . . . . . . . . . . . . . . Machines Dismantled . | . . . . . . . . . . . . . . . . . Machines Sabotaged . | . . . . . . . . . . . . . . . . . Overloaded Fab Kills . | . . . . . . . . . . . . . . . . . Hacking | -11 -10 -10 -9 -9 -9 -8 -8 -8 -7 -7 -6 -5 -5 -5 -5 -4 --------- Run | Yrd Mat Min Mat Min Exi Min Mat Sto Fac DSF Fac Fac Upp Upp Zhi Pro Machines Accessed 27 | . 3 . . 1 2 . . 7 3 . 3 1 1 . 6 . Terminals 12 | . 3 . . . . . . 5 3 . 1 . . . . . Fabricators 2 | . . . . . . . . . . . 1 1 . . . . Repair Stations . | . . . . . . . . . . . . . . . . . Recycling Units 1 | . . . . . . . . 1 . . . . . . . . Scanalyzers . | . . . . . . . . . . . . . . . . . Garrison Access 2 | . . . . . . . . 1 . . 1 . . . . . Total Hacks 74 | . 9 . . 1 10 . . 19 6 . 7 2 1 . 19 . Successful 49 | . 3 . . 1 10 . . 8 2 . 3 2 1 . 19 . Failed 25 | . 6 . . . . . . 11 4 . 4 . . . . . Catastrophic 5 | . . . . . . . . 3 . . 2 . . . . . Database Lockouts . | . . . . . . . . . . . . . . . . . Manual 34 | . 7 . . . . . . 12 5 . 7 1 1 . 1 . Terminals 34 | . 9 . . . . . . 15 6 . 4 . . . . . Fabricators 3 | . . . . . . . . . . . 1 2 . . . . Repair Stations . | . . . . . . . . . . . . . . . . . Recycling Units 2 | . . . . . . . . 2 . . . . . . . . Scanalyzers . | . . . . . . . . . . . . . . . . . Garrison Access 4 | . . . . . . . . 2 . . 2 . . . . . Terminal Hacks 39 | . 2 . . 1 10 . . 4 2 . . . 1 . 19 . Record 17 | . . . . . 10 . . . . . . . . . 7 . Part Schematic 4 | . . . . . . . . . . . . . . . 4 . Robot Analysis 4 | . . . . . . . . . . . . . . . 4 . Prototype ID Bank 6 | . 1 . . . . . . 1 . . . . . . 4 . Open Door 3 | . . . . 1 . . . 1 . . . . 1 . . . Open DSF 1 | . . . . . . . . . 1 . . . . . . . Alert Level 1 | . . . . . . . . 1 . . . . . . . . Unreport Threat 1 | . 1 . . . . . . . . . . . . . . . Locate Traps 1 | . . . . . . . . . 1 . . . . . . . Zone Layout 1 | . . . . . . . . 1 . . . . . . . . Fabricator Hacks 1 | . . . . . . . . . . . . 1 . . . . Network Status 1 | . . . . . . . . . . . . 1 . . . . Repair Station Hacks . | . . . . . . . . . . . . . . . . . Recycling Unit Hacks . | . . . . . . . . . . . . . . . . . Scanalyzer . | . . . . . . . . . . . . . . . . . Garrison Access Hacks . | . . . . . . . . . . . . . . . . . Unauthorized Hacks 9 | . 1 . . . . . . 4 . . 3 1 . . . . Terminals 7 | . 1 . . . . . . 3 . . 3 . . . . . Assimilate 2 | . . . . . . . . 2 . . . . . . . . Botnet 1 | . . . . . . . . . . . 1 . . . . . Detonate 1 | . . . . . . . . . . . 1 . . . . . Disrupt 1 | . 1 . . . . . . . . . . . . . . . Operators 2 | . . . . . . . . 1 . . 1 . . . . . Fabricators 1 | . . . . . . . . . . . . 1 . . . . Fabnet 1 | . . . . . . . . . . . . 1 . . . . Repair Stations . | . . . . . . . . . . . . . . . . . Recycling Units 1 | . . . . . . . . 1 . . . . . . . . Recyclers 1 | . . . . . . . . 1 . . . . . . . . Scanalyzers . | . . . . . . . . . . . . . . . . . Garrison Access . | . . . . . . . . . . . . . . . . . Data Cores Recovered . | . . . . . . . . . . . . . . . . . Used . | . . . . . . . . . . . . . . . . . Hacking Detections 12 | . 3 . . . . . . 4 2 . 3 . . . . . Full Trace Events 1 | . . . . . . . . 1 . . . . . . . . Feedback Events . | . . . . . . . . . . . . . . . . . Feedback Blocked . | . . . . . . . . . . . . . . . . . Robot Schematics Acquired . | . . . . . . . . . . . . . . . . . Robots Built . | . . . . . . . . . . . . . . . . . Authchips . | . . . . . . . . . . . . . . . . . Time . | . . . . . . . . . . . . . . . . . Total Robot Build Rating . | . . . . . . . . . . . . . . . . . Part Schematics Acquired 4 | . . . . . . . . . . . . . . . 4 . Parts Built . | . . . . . . . . . . . . . . . . . Authchips . | . . . . . . . . . . . . . . . . . Time . | . . . . . . . . . . . . . . . . . Total Part Build Rating . | . . . . . . . . . . . . . . . . . Parts Repaired . | . . . . . . . . . . . . . . . . . Time . | . . . . . . . . . . . . . . . . . Parts Recycled . | . . . . . . . . . . . . . . . . . Recycled Matter . | . . . . . . . . . . . . . . . . . Retrieved Matter . | . . . . . . . . . . . . . . . . . Retrieved Components . | . . . . . . . . . . . . . . . . . Parts Scanalyzed . | . . . . . . . . . . . . . . . . . Part Schematics Acquired . | . . . . . . . . . . . . . . . . . Parts Damaged . | . . . . . . . . . . . . . . . . . Bothacking | -11 -10 -10 -9 -9 -9 -8 -8 -8 -7 -7 -6 -5 -5 -5 -5 -4 ------------ Run | Yrd Mat Min Mat Min Exi Min Mat Sto Fac DSF Fac Fac Upp Upp Zhi Pro Used RIF Installer . | . . . . . . . . . . . . . . . . . Robots Hacked . | . . . . . . . . . . . . . . . . . Non-combat . | . . . . . . . . . . . . . . . . . Combat . | . . . . . . . . . . . . . . . . . Robot Hacks Applied . | . . . . . . . . . . . . . . . . . Relay Couplers Released . | . . . . . . . . . . . . . . . . . Fabnet Peak Effective % 3 | . . . . . . . . . . . . . . . . 3 Robots Rewired 7 | . . . . . 4 . . . . . . . . 3 . . Allies Hacked . | . . . . . . . . . . . . . . . . . Hacks Repelled . | . . . . . . . . . . . . . . . . . Allies | -11 -10 -10 -9 -9 -9 -8 -8 -8 -7 -7 -6 -5 -5 -5 -5 -4 -------- Run | Yrd Mat Min Mat Min Exi Min Mat Sto Fac DSF Fac Fac Upp Upp Zhi Pro Total Allies 17 | . . . . . 4 . . 10 . . . . . 3 . . Largest Group 10 | . . . . . 4 4 2 10 7 7 2 . . 3 . . Highest-Rated Group 173 | . . . . . 58 58 42 173 125 125 32 . . 75 . . Highest-Rated Ally 29 | . . . . . 21 21 21 29 29 29 16 . . 25 . . Total Orders . | . . . . . . . . . . . . . . . . . Ally Attacks 179 | . . . . . . 2 6 96 . 52 2 . . 21 . . Total Damage 2730 | . . . . . . 72 101 1232 . 684 30 . . 611 . . Kills 30 | . . . . . . 3 2 17 . 3 . . . 5 . . Allies Corrupted . | . . . . . . . . . . . . . . . . . Allies Melted . | . . . . . . . . . . . . . . . . . Intel | -11 -10 -10 -9 -9 -9 -8 -8 -8 -7 -7 -6 -5 -5 -5 -5 -4 ------- Run | Yrd Mat Min Mat Min Exi Min Mat Sto Fac DSF Fac Fac Upp Upp Zhi Pro Robot Analysis Total 4 | . . . . . . . . . . . . . . . 4 . Derelict Logs Recovered 4 | . . . . 1 . . . . . . . . 2 1 . . Drone Launches . | . . . . . . . . . . . . . . . . . Drone Recoveries . | . . . . . . . . . . . . . . . . . Exploration | -11 -10 -10 -9 -9 -9 -8 -8 -8 -7 -7 -6 -5 -5 -5 -5 -4 ------------- Run | Yrd Mat Min Mat Min Exi Min Mat Sto Fac DSF Fac Fac Upp Upp Zhi Pro Turns Passed 9529 | 113 424 21 473 102 685 19 372 943 446 226 256 249 2742 1373 286 799 Spaces Moved 4731 | 55 200 12 251 56 393 12 194 480 336 103 139 136 1071 687 171 435 Core 43 | 9 . . . . . . . . . . . . . . . 34 Treads 3778 | 46 200 12 251 56 393 12 122 . . 81 139 136 1071 687 171 401 Legs 910 | . . . . . . . 72 480 336 22 . . . . . . Wheels . | . . . . . . . . . . . . . . . . . Hover . | . . . . . . . . . . . . . . . . . Flight . | . . . . . . . . . . . . . . . . . Fastest Speed 50 | 50 160 160 160 160 160 160 120 120 127 127 170 170 162 160 162 50 Average Speed 173 | 152 160 160 160 160 160 160 156 135 127 162 170 174 237 161 162 155 Slowest Speed 252 | 200 160 160 160 160 160 160 240 190 127 250 170 250 252 162 162 250 Overloaded Moves . | . . . . . . . . . . . . . . . . . Propulsion Burnouts . | . . . . . . . . . . . . . . . . . Robots Hopped . | . . . . . . . . . . . . . . . . . Cave-ins Triggered . | . . . . . . . . . . . . . . . . . Teleports 1 | . . . . . . . . . . . . . . . 1 . Exploration Rate (%) 42 | 5 36 5 25 14 89 7 25 91 10 90 4 4 98 87 63 71 Regions Visited 16 Branch Regions 9 Pre-discovered Areas 3 | . . . . . . . . . . . . . . . 3 . Known Exits Taken 2 | . . . . . . . . 1 1 . . . . . . . Unknown Exits Taken 13 | 1 1 1 1 1 1 1 1 . . . 1 1 1 1 1 . Scrap Searched 8 | . . . . . . . . . . . . . 5 2 . 1 Spaces Dug 7 | . . . . . . . . . . . . 1 . . . 6 Terrain Destroyed 437 | . . . 75 . . . 16 134 . . . 1 . 52 . 159 Melee 1 | . . . . . . . . . . . . 1 . . . . Projectile 2 | . . . . . . . . . . . . . . . . 2 AOE 434 | . . . 75 . . . 16 134 . . . . . 52 . 157 Terrain Rammed . | . . . . . . . . . . . . . . . . . Walls Destroyed . | . . . . . . . . . . . . . . . . . Machines Disabled . | . . . . . . . . . . . . . . . . . Actions | -11 -10 -10 -9 -9 -9 -8 -8 -8 -7 -7 -6 -5 -5 -5 -5 -4 --------- Run | Yrd Mat Min Mat Min Exi Min Mat Sto Fac DSF Fac Fac Upp Upp Zhi Pro Total 5720 | 77 265 14 298 68 442 12 232 694 356 160 152 148 1236 886 180 500 Wait 399 | 10 24 1 17 3 . . 2 83 8 17 4 . 111 112 . 7 Move 4716 | 54 199 11 250 55 392 11 193 479 335 102 138 136 1070 686 170 435 Hop . | . . . . . . . . . . . . . . . . . Pick Up 76 | 4 7 . 2 1 2 1 4 14 6 9 2 2 12 6 1 3 Fast Attach 50 | 7 1 1 2 3 . . 8 5 2 7 2 3 2 2 3 2 Attach 34 | . . . 1 . . . 3 3 . . . . 2 13 1 11 Detach 12 | . . . . 1 . . . 1 . . . 1 2 4 1 2 Swap 38 | . 2 . 1 2 1 . 2 19 1 3 . 1 3 1 1 1 Drop 97 | . 6 1 3 3 . . 6 27 4 18 2 4 12 3 3 5 Fire 208 | 2 26 . 22 . 7 . 14 52 . 2 4 . 20 31 . 28 Melee 22 | . . . . . . . . 6 . 2 . 1 1 6 . 6 Ram . | . . . . . . . . . . . . . . . . . Kick . | . . . . . . . . . . . . . . . . . Crush . | . . . . . . . . . . . . . . . . . Escape Stasis 5 | . . . . . . . . 5 . . . . . . . . Rewire 63 | . . . . . 40 . . . . . . . 1 22 . . Trap . | . . . . . . . . . . . . . . . . . Miscellaneous . | . . . . . . . . . . . . . . . . . Route ------- -11/Scrapyard -10/Materials (discovered 2 exits: [*Mat] / [*Min]) -10/Mines -9/Materials -9/Mines -9/Exiles -8/Mines -8/Materials (discovered 2 exits: Fac / *Sto) -8/Storage (discovered 2 exits: *Fac / [*Rec]) -7/Factory -7/DSF -6/Factory -5/Factory -5/Upper Caves -5/Upper Caves -5/Zhirov -4/Proximity Caves History --------- Turn | Location | Event 21 | -11/Scrapyard | Discovered new exit (range 15) 114 | -11/Scrapyard | Entered Materials 232 | -10/Materials | Discovered new exit (range 16) 309 | -10/Materials | Build established: Mutant 348 | -10/Materials | Discovered new exit (range 10) 538 | -10/Materials | Entered Mines 538 | -10/Mines | Discovered new exit (range 6) 545 | -10/Mines | Received a Rocket Launcher from a helpful Derelict 559 | -10/Mines | Entered Materials 559 | -9/Materials | Evolved 2 slots: Propulsion x2 1013 | -9/Materials | Discovered new exit (range 12) 1032 | -9/Materials | Entered Mines 1049 | -9/Mines | Met a Derelict who couldn't figure out how to use a Trap Extractor 1058 | -9/Mines | Learned location of 1 exit from Materials 1128 | -9/Mines | Deemed a non-threat by the Exiles lab entrance 1128 | -9/Mines | Discovered new exit (range 5) 1134 | -9/Mines | Entered Exiles 1134 | -9/Exiles | Found Exiles lab destroyed 1798 | -9/Exiles | Discovered new exit (range 14) 1819 | -9/Exiles | Entered Mines 1819 | -8/Mines | Accompanied by 4 allies 1824 | -8/Mines | Discovered new exit (range 8) 1838 | -8/Mines | Entered Materials 1838 | -8/Materials | Accompanied by 2 allies 1838 | -8/Materials | Evolved 2 slots: Utility x2 1839 | -8/Materials | Identified exit to Factory 2022 | -8/Materials | Met 7R-MNS 2195 | -8/Materials | Discovered new exit (range 7) 2210 | -8/Materials | Entered Storage 2302 | -8/Storage | Destroyed 8 combat bots 2690 | -8/Storage | Assisted by bots powering up and referring to "LRC-V3" 2931 | -8/Storage | Used back door to open Recycling access 2931 | -8/Storage | Discovered new exit (range 5) 2984 | -8/Storage | Garrison activated, responded to threat 2991 | -8/Storage | Build established: Commander-Mutant 3043 | -8/Storage | Discovered exit to Factory (range 14) 3153 | -8/Storage | Entered Factory 3153 | -7/Factory | Accompanied by 7 allies 3153 | -7/Factory | Evolved 2 slots: Utility x2 3594 | -7/Factory | Identified exit to DSF 3599 | -7/Factory | Entered DSF 3599 | -7/DSF | Accompanied by 7 allies 3635 | -7/DSF | Additional patrols routed to DSF 3636 | -7/DSF | Discovered new exit (range 15) 3684 | -7/DSF | Lost 3 allies 3825 | -7/DSF | Entered Factory 3825 | -6/Factory | Accompanied by 2 allies 3825 | -6/Factory | Evolved 2 slots: Utility x2 3984 | -6/Factory | Discovered new exit (range 19) 4060 | -6/Factory | Build established: Scavenger-Mutant 4081 | -6/Factory | Entered another Factory area 4081 | -5/Factory | Evolved 2 slots: Utility x2 4320 | -5/Factory | Discovered new exit (range 4) 4330 | -5/Factory | Entered Upper Caves 4339 | -5/Upper Caves | Acquired the password to a Derelict Tinkerer's latest research 4355 | -5/Upper Caves | Found Prototype Special Weapon 4358 | -5/Upper Caves | Identified Molecular Deconstructor 4394 | -5/Upper Caves | Encountered a Warlord checkpoint 5203 | -5/Upper Caves | Caught by Unaware searching for contraband prototypes 5709 | -5/Upper Caves | Learned Factory stockpile data 5729 | -5/Upper Caves | Learned Factory emergency access door positions 6312 | -5/Upper Caves | Attracted the attention of an 0b10 checkpoint 6715 | -5/Upper Caves | Discovered new exit (range 18) 7072 | -5/Upper Caves | Entered another Upper Caves area 7113 | -5/Upper Caves | Attacked by a delusional Derelict stockpiling Unaware 7262 | -5/Upper Caves | Build established: Derelict-Mutant 7406 | -5/Upper Caves | Lost 3 allies 7621 | -5/Upper Caves | Attracted the attention of an 0b10 checkpoint 8132 | -5/Upper Caves | Discovered new exit (range 10) 8140 | -5/Upper Caves | Learned Factory garrison access intel 8145 | -5/Upper Caves | Spotted B-75 Beast 8357 | -5/Upper Caves | Destroyed B-75 Beast 8445 | -5/Upper Caves | Entered Zhirov 8445 | -5/Zhirov | Discovered new exit (range 5) 8478 | -5/Zhirov | Met Zhirov 8507 | -5/Zhirov | Learned location of Quarantine (-2) 8507 | -5/Zhirov | Learned location of Testing (-3) 8507 | -5/Zhirov | Learned location of Command (-1) 8536 | -5/Zhirov | Zhirov requested help retrieving the SGEMP Prototype 8566 | -5/Zhirov | Found Alien Artifact 8566 | -5/Zhirov | Identified Integrated Reactor 8566 | -5/Zhirov | Installed Integrated Reactor, increased core energy generation (+10) 8585 | -5/Zhirov | Found Alien Artifact 8585 | -5/Zhirov | Identified Transdimensional Reconstructor 8585 | -5/Zhirov | Warped through subspace 8731 | -5/Zhirov | Entered Proximity Caves 8788 | -4/Proximity Caves | Spotted B-86 Titan 8867 | -4/Proximity Caves | Destroyed B-86 Titan 9422 | -4/Proximity Caves | Attracted the attention of an 0b10 outpost 9465 | -4/Proximity Caves | Destroyed 8 combat bots 9478 | -4/Proximity Caves | Core integrity fell below 50% 9508 | -4/Proximity Caves | Core integrity fell below 20% 9530 | -4/Proximity Caves | Destroyed by H-77 Assassin with Coil Gun Last Messages --------------- 09502_ The unstable cave ceiling collapses. 09504_ Penetrated by Slug. 09504_ Slug penetrates Wall. 09505_ Adv. System Shield destroyed. 09505_ Slug penetrates Wall. 09507_ Penetrated by Slug. 09507_ Gauss Rifle destroyed. 09509_ The unstable cave ceiling collapses. 09509_ Dropped Com. Battery. 09509_ Acquired Hcp. Storage Unit. 09510_ Penetrated by Slug. 09510_ Extracted 250 matter. 09511_ Slug penetrates Earth. 09512_ Dropped Com. Battery. 09513_ Acquired Imp. Hacking Suite. 09514_ The unstable cave ceiling collapses. 09514_ Extracted 1 energy. 09518_ Dropped Matter Compressor. 09519_ Extracted 8 matter. 09530_ Slug penetrates Wall. Map ----- +----------------------------------------------------+ | ?????????????????????????????????????????????????? | | ?????????????????????????????????????????????????? | | ?????????????????????????????????????????????????? | | ?????????????????????????????????????????????????? | | ?????????????????????????????????????????????????? | | ?????????????????????????????????????????????????? | | ?????????????????????????????????????????????????? | | ?????????????????????????????????????????????????? | | ?????????????????????????????????????????????????? | | ?????????????????????????????????????????????????? | | ?????????????????????????????????????????????????? | | ######???????????????????????????????????????????? | | % #???????????????????????????????????????????? | | """ #???????????####???????????????#????????????? | | """ #??????????## ?????????????? ????????????? | | """ #??????????? ???????????? ?????????????? | | """ #???????????# ???????????? ??????????????? | | ##??????????# #?????????? ???????????????? | | #?????????## ####????? ###?????????????? | | ### #?????????# ##?### ??????????????? | | ??## ##??????????? ## ?????### #??????? | | ???# #????????????? ???? "# ##????? | | ?### #??????????????# #??? " #????? | | ## ###########?????# #? " " #????? | | # % % #?????# ##? ##???? | | #% ####### #????## @ # # # #???? | | # % ##?????# #?#### % #???? | | #%% ###????# ### #???? | | % %%##???# ## # ##???? | | % %% %##### # # %%%## #### h% ####??? | | ### % %% # # #####???# ## #??? | | ??##%% %#### # ##????# h# # ???? | | ???##%% #### # # #???## ## ##??? | | ????#####?# #### ##??? %# # #??? | | ??????????## ### ##??# #??? | | ???????????### ### #??# #??? | | ?????????????# ## #??# # #???? | | ????????????## ## ##?? #????? | | ????????????# ##### ??????? | | ????????????# #?#=#???????? | | ????????????# ### ##?#!#???????? | | ????????????# #?#### # ##??# #???????? | | ??????????? #????## ## ## #???#!#???????? | | ?????????? #?????# ###### ###?# #???????? | | ????????? ######?????## #????# ###!#???????? | | ??????? ?????????????# #??## ## #???????? | | ?????? ??????????????# #?## ## #???????? | | ????? ???????????????## ###?# ! #???????? | | ????# ?????????????????####???# ######???????? | | ????#?????????????????????????# ##????????????? | +----------------------------------------------------+ Best States ------------- Heat Dissipation 68 Energy Generation 33 Energy Capacity 1895 Matter Stores 300 Matter Capacity 300 Sight Range 20 Terrain Scan Range 16 Terrain Scan Density 235 Armor Coverage 600 Resistance: KI 30 Weapon Shielding 66 Evasion (%) 55 Armor Integrity Analysis 30 Recoil Reduction 4 Defensive Hacking 14 Item Schematics ----------------- Assault Drone Bay | -5/Zhirov | Free Exp. Heat Sink | -5/Zhirov | Free Exp. Optical Array | -5/Zhirov | Free Imp. Arc Thrower | -5/Zhirov | Free Robot Schematics ------------------ None Fabricated ------------ Nothing Alien Tech Used ----------------- Integrated Reactor Transdimensional Reconstructor Achievements -------------- Deconstruction Challenges ------------ None Game ------ Seed PlatingCoilLance Manual? 0 Play Time 01:07:39 Cumulative 68.0 hours Start 2024.04.13 @ 15:44:07 End 2024.04.13 @ 17:23:58 Sessions 2 Manual Loads 0 Difficulty Rogue Special Mode None Game No. 79 Rogue 74 Adventurer 5 Explorer 0 Win Type - Total 2 Types 1/0/0/1/0/0/0/0/0 Lore% 33 Gallery% 53 Achievement% 43 Wizard Run 0 Options --------- Layout 1 ASCII 0 Keyboard 0 Movement Mouse Keybinds 0 Fullscreen 1 Font 24/Terminus Map View 50x35 Zoom Use 0% Tactical HUD 1 Map Filters NONE Filters NONE Steam 1 RUN: 7c893a5a-92af-4049-ba15-bd0328576731